bitfinex-derivatives/quotes_SOLF0:USTF0_20260210
["timestamp","ask_amount","ask_price","bid_price","bid_amount"]
[1770765936337,4.1201393,82.619,82.584,10.9039]
[1770765937144,4.1201393,82.619,82.591,10.9029]
[1770765937539,4.1201393,82.619,82.58,10.9044]
[1770765937842,4.1201393,82.609,82.572,4.00526453]
[1770765938747,4.1201393,82.609,82.586,10.9036]
[1770765939446,4.1201393,82.609,82.579,10.9045]
[1770765940539,7.87818607,82.62,82.583,10.904]
[1770765940742,7.87818607,82.62,82.584,4.00526453]
[1770765941141,4.1201393,82.619,82.584,4.00526453]
[1770765941743,4.1201393,82.619,82.592,10.9027]
[1770765941942,4.1201393,82.619,82.573,4.00526453]
[1770765942347,3.75804677,82.61,82.573,4.00526453]
[1770765942548,4.1201393,82.609,82.573,4.00526453]
[1770765942750,4.1201393,82.609,82.582,10.9042]
[1770765944848,3.93e-05,82.609,82.573,4.00526453]
[1770765945054,3.75804677,82.62,82.573,4.00526453]
[1770765945741,3.75804677,82.63,82.592,4.00526453]
[1770765946756,3.73363759,82.629,82.592,4.00526453]
[1770765947954,3.73363759,82.629,82.595,10.9025]
[1770765948649,3.75804677,82.62,82.595,10.9025]
[1770765949952,3.75804677,82.62,82.603,10.9014]
[1770765950344,3.75804677,82.63,82.603,10.9014]
[1770765952158,3.75804677,82.63,82.597,10.9022]
[1770765953253,3.75804677,82.63,82.602,10.9014]
[1770765956458,3.75804677,82.63,82.608,10.9007]
[1770765959162,3.75804677,82.63,82.603,3.87555461]
[1770765959555,290.84,82.636,82.603,3.87555461]
[1770765959961,3.75804677,82.63,82.607,10.9008]
[1770765960360,290.84,82.636,82.607,10.9008]
[1770765962951,764.29838406,82.639,82.607,10.9008]
[1770765963154,301.61354213,82.638,82.607,10.9008]
[1770765963356,3.75804677,82.63,82.607,10.9008]
[1770765963556,7.5115889,82.62,82.589,3.87555461]
[1770765963761,3.75430338,82.61,82.589,3.87555461]
[1770765964061,3.75430338,82.61,82.589,0.11770552]
[1770765964263,299.0,82.617,82.589,0.11770552]
[1770765964463,299.0,82.617,82.591,10.9029]
[1770765972161,4.12990317,82.616,82.585,10.9038]
[1770765972362,7.88385933,82.61,82.58,3.87555461]
[1770765973363,4.12990317,82.609,82.581,10.9043]
[1770765976668,4.12990317,82.609,82.581,14.77985461]
[1770765976871,3.75395616,82.61,82.586,10.9037]
[1770765981074,304.66,82.616,82.586,10.9037]
[1770765981274,4.12990317,82.619,82.586,10.9037]
[1770765981474,4.12990317,82.619,82.586,14.73952582]
[1770765982369,4.12990317,82.619,82.586,3.83582582]
[1770765983666,4.12990317,82.619,82.588,10.9034]
[1770765987671,4.12990317,82.619,82.586,3.83582582]
[1770765987871,7.50201728,82.61,82.582,10.9041]
[1770765988377,7.50201728,82.61,82.582,14.79229556]
[1770765988580,7.50201728,82.61,82.584,10.9039]
[1770765989181,3.74806112,82.61,82.584,10.9039]
[1770765992079,3.74806112,82.61,82.582,10.9041]
[1770765993281,7.50201728,82.61,82.582,10.9041]
[1770765995782,7.50201728,82.61,82.582,14.79229556]
[1770765995983,3.75395616,82.62,82.593,10.9027]
[1770765997576,312.3,82.622,82.593,10.9027]
[1770765998081,316.04806112,82.622,82.593,10.9027]
[1770765998576,3.74806112,82.621,82.591,3.88819556]
[1770765999082,3.74806112,82.621,82.592,10.9028]
[1770765999476,3.75395616,82.62,82.592,10.9028]
[1770765999882,3.75395616,82.62,82.594,10.9025]
[1770766000084,3.75395616,82.62,82.56,3.75395616]
[1770766000085,3.74806112,82.629,82.595,3.88819556]
[1770766000276,764.29838406,82.639,82.56,22.62966999]
[1770766000277,3.74806112,82.619,82.573,3.88819556]
[1770766001279,3.74806112,82.619,82.586,10.9037]
[1770766002781,14.64746112,82.619,82.582,3.88819556]
[1770766002982,3.74806112,82.599,82.553,3.88819556]
[1770766003184,3.74806112,82.589,82.553,3.88819556]
[1770766004889,3.74806112,82.589,82.557,10.9074]
[1770766005083,3.74806112,82.589,82.553,3.88819556]
[1770766005286,3.75395616,82.58,82.553,3.88819556]
[1770766005481,3.75395616,82.58,82.543,3.88819556]
[1770766005882,3.75395616,82.58,82.549,10.9085]
[1770766006578,3.74806112,82.579,82.543,3.88819556]
[1770766006984,3.75395616,82.57,82.543,3.88819556]
[1770766007291,3.75395616,82.57,82.541,10.9096]
[1770766007292,7.50201728,82.57,82.541,10.9096]
[1770766009689,3.74806112,82.569,82.533,14.79879556]
[1770766009988,3.74806112,82.569,82.533,10.9106]
[1770766010391,3.75395616,82.56,82.533,10.9106]
[1770766011083,3.75395616,82.56,82.524,3.76403336]
[1770766011084,3.77737803,82.559,82.524,3.76403336]
[1770766013581,3.77737803,82.559,82.524,14.67583336]
[1770766016200,3.77737803,82.559,82.524,3.76403336]
[1770766019004,3.77737803,82.559,82.526,3.76403336]
[1770766021094,3.75395616,82.57,82.526,3.76403336]
[1770766022702,3.75395616,82.57,82.533,3.76403336]
[1770766023102,3.75395616,82.58,82.533,3.76403336]
[1770766024016,3.77737803,82.579,82.533,3.76403336]
[1770766024712,3.77737803,82.579,82.542,3.76403336]
[1770766025209,3.77737803,82.577,82.542,3.76403336]
[1770766025415,3.75395616,82.57,82.542,3.76403336]
[1770766025618,3.75395616,82.57,82.545,10.909]
[1770766025820,3.77737803,82.577,82.545,10.909]
[1770766026115,3.77737803,82.577,82.542,3.76403336]
[1770766026616,3.77737803,82.577,82.543,10.9093]
[1770766027419,3.77737803,82.577,82.543,14.67333336]
[1770766027809,3.77737803,82.577,82.544,3.76403336]
[1770766033422,3.77737803,82.577,82.545,14.67303336]
[1770766033825,3.75799091,82.58,82.545,3.76403336]
[1770766034030,3.77737803,82.589,82.545,3.76403336]
[1770766034719,3.77737803,82.589,82.554,3.76403336]
[1770766035119,3.75799091,82.59,82.554,3.76403336]
[1770766035321,3.77737803,82.599,82.554,3.76403336]
[1770766036620,3.75799091,82.6,82.569,3.76403336]
[1770766038118,3.75799091,82.6,82.573,3.76403336]
[1770766038431,3.77737803,82.609,82.573,3.76403336]
[1770766039727,3.77737803,82.609,82.575,3.76403336]
[1770766040728,3.77737803,82.609,82.582,10.9041]
[1770766045632,3.75799091,82.61,82.586,10.9037]
[1770766045927,3.75799091,82.61,82.55,21.8167]
[1770766045928,7.53453467,82.63,82.587,3.83578809]
[1770766046324,3.77654376,82.629,82.587,3.83578809]
[1770766046526,3.75799091,82.62,82.587,3.83578809]
[1770766046725,3.75799091,82.62,82.593,10.9027]
[1770766053139,7.53453467,82.62,82.593,10.9027]
[1770766054842,7.53453467,82.62,82.57,3.75799091]
[1770766054843,3.75799091,82.62,82.597,10.9022]
[1770766055240,3.75799091,82.62,82.594,3.83578809]
[1770766059844,3.77654376,82.619,82.583,3.83578809]
[1770766060044,3.75799091,82.61,82.583,3.83578809]
[1770766064150,3.75799091,82.62,82.585,3.83578809]
[1770766064351,3.75799091,82.63,82.585,3.83578809]
[1770766064549,3.75799091,82.64,82.585,3.83578809]
[1770766065858,14.65459091,82.64,82.604,3.83578809]
[1770766066251,18.43113467,82.64,82.604,3.83578809]
[1770766066550,3.75799091,82.64,82.611,10.9003]
[1770766066758,3.75799091,82.64,82.611,14.73608809]
[1770766067255,3.75799091,82.64,82.617,10.8995]
[1770766067556,3.75799091,82.65,82.618,3.83578809]
[1770766072245,7.8155988,82.65,82.618,3.83578809]
[1770766073559,3.75799091,82.64,82.618,3.83578809]
[1770766078155,7.80876747,82.65,82.618,3.83578809]
[1770766079150,3.75115958,82.65,82.618,3.83578809]
[1770766079460,3.75115958,82.66,82.618,3.83578809]
[1770766079656,4.05760789,82.669,82.618,3.83578809]
[1770766080753,4.05760789,82.669,82.632,10.8976]
[1770766081657,4.05760789,82.669,82.632,14.94646941]
[1770766082258,4.05760789,82.669,82.633,4.04886941]
[1770766082459,10.8929,82.668,82.633,4.04886941]
[1770766082659,3.75115958,82.67,82.64,4.04886941]
[1770766083257,4.05760789,82.659,82.611,4.04886941]
[1770766083569,3.75115958,82.64,82.611,4.04886941]
[1770766087766,3.75115958,82.64,82.612,10.9002]
[1770766087962,3.75115958,82.64,82.612,14.94906941]
[1770766088870,3.75115958,82.64,82.613,4.04886941]
[1770766089367,4.05760789,82.649,82.613,4.04886941]
[1770766089765,4.05760789,82.649,82.619,10.8993]
[1770766093169,4.05760789,82.649,82.619,14.94816941]
[1770766095272,4.05760789,82.644,82.61,4.04886941]
[1770766095973,4.05760789,82.644,82.59,3.75112082]
[1770766095974,3.75112082,82.65,82.618,4.04886941]
[1770766096271,3.75112082,82.65,82.583,145.06257168]
[1770766096272,4.05760789,82.649,82.608,4.04886941]
[1770766097173,10.8957,82.647,82.614,4.04886941]
[1770766097669,10.8944,82.657,82.619,4.04886941]
[1770766098772,10.8944,82.657,82.623,4.04886941]
[1770766099869,3.75112082,82.66,82.628,4.04886941]
[1770766100067,14.95060789,82.668,82.628,4.04886941]
[1770766100774,14.95060789,82.668,82.61,3.75112082]
[1770766100775,14.95060789,82.668,82.63,4.11524134]
[1770766101774,4.10739586,82.666,82.632,4.11524134]
[1770766102778,4.10739586,82.666,82.634,4.11524134]
[1770766105177,469.25296043,82.677,82.644,4.04935559]
[1770766106178,3.94751615,82.688,82.644,4.04935559]
[1770766106881,3.94751615,82.688,82.63,3.75112082]
[1770766106882,3.75112082,82.69,82.655,4.04935559]
[1770766107073,351.4,82.692,82.655,4.04935559]
[1770766108283,3.94751615,82.691,82.659,10.8939]
[1770766108681,3.75112082,82.69,82.659,10.8939]
[1770766109787,3.75112082,82.69,82.66,4.04935559]
[1770766109982,3.94751615,82.691,82.661,14.94305559]
[1770766113086,3.94751615,82.699,82.664,4.04935559]
[1770766113291,355.98,82.702,82.664,4.04935559]
[1770766113492,3.94751615,82.709,82.664,4.04935559]
[1770766114787,3.94751615,82.709,82.671,10.8923]
[1770766117399,3.94751615,82.699,82.664,14.94265559]
[1770766117601,3.94751615,82.699,82.664,4.04935559]
[1770766118906,3.94751615,82.699,82.67,10.8926]
[1770766120113,360.86,82.708,82.671,4.04935559]
[1770766120407,360.86,82.708,82.674,4.04935559]
[1770766120802,3.94751615,82.707,82.674,4.04935559]
[1770766121003,3.94751615,82.707,82.676,4.04935559]
[1770766122401,3.75112082,82.7,82.676,4.04935559]
[1770766122599,3.75112082,82.7,82.667,14.94225559]
[1770766123000,3.75112082,82.7,82.668,4.04935559]
[1770766123606,3.94751615,82.699,82.668,4.04935559]
[1770766124113,3.94751615,82.699,82.664,10.8933]
[1770766124309,3.94751615,82.689,82.651,4.04935559]
[1770766124511,3.75112082,82.68,82.651,4.04935559]
[1770766125312,3.94751615,82.689,82.651,4.04935559]
[1770766125703,3.94751615,82.689,82.652,14.94425559]
[1770766125904,3.94751615,82.689,82.653,4.04935559]
[1770766126714,3.94751615,82.689,82.663,10.8935]
[1770766132922,3.75112082,82.69,82.663,10.8935]
[1770766133321,4.14829702,82.686,82.65,4.02070301]
[1770766134220,3.75112082,82.68,82.65,4.02070301]
[1770766134521,3.75112082,82.68,82.646,10.8956]
[1770766134522,4.14829702,82.679,82.646,10.8956]
[1770766136218,4.14829702,82.679,82.655,10.8946]
[1770766136423,7.89941784,82.69,82.655,10.8946]
[1770766136820,4.14829702,82.689,82.658,10.8942]
[1770766137525,4.14829702,82.689,82.658,14.91490301]
[1770766137925,4.14829702,82.689,82.659,4.02070301]
[1770766139726,4.14829702,82.689,82.66,10.8939]
[1770766140022,4.14829702,82.689,82.655,4.02070301]
[1770766141820,4.14829702,82.689,82.665,10.8932]
[1770766144125,3.75112082,82.7,82.665,10.8932]
[1770766144126,4.14829702,82.699,82.665,10.8932]
[1770766144325,3.75112082,82.72,82.676,4.02070301]
[1770766144628,4.14829702,82.719,82.676,4.02070301]
[1770766145328,4.14829702,82.717,82.676,4.02070301]
[1770766145625,3.75112082,82.71,82.676,4.02070301]
[1770766146517,3.75112082,82.71,82.681,10.891]
[1770766149728,3.75112082,82.7,82.675,10.8919]
[1770766151624,4.14829702,82.709,82.675,14.91260301]
[1770766151826,4.14829702,82.709,82.678,10.8915]
[1770766154029,4.14829702,82.709,82.65,14.92257168]
[1770766154231,3.74551498,82.68,82.641,4.02070301]
[1770766154534,3.74551498,82.69,82.641,4.02070301]
[1770766154731,3.74551498,82.69,82.652,5.46102453]
[1770766154937,3.74551498,82.7,82.652,5.46102453]
[1770766156836,3.74551498,82.7,82.666,5.46102453]
[1770766157831,3.74551498,82.69,82.666,5.46102453]
[1770766158336,3.74551498,82.7,82.666,5.46102453]
[1770766159730,3.74551498,82.7,82.67,16.4662392]
[1770766161338,3.74551498,82.7,82.671,5.56525249]
[1770766161939,3.74551498,82.7,82.67,10.8925]
[1770766163031,3.74551498,82.7,82.673,10.8921]
[1770766163538,3.74551498,82.7,82.673,16.47007427]
[1770766165141,3.74551498,82.7,82.674,5.56626604]
[1770766165536,476.80497995,82.721,82.676,5.56626604]
[1770766165537,3.74551498,82.71,82.676,5.56626604]
[1770766166746,3.74551498,82.71,82.683,10.8909]
[1770766167037,3.74551498,82.7,82.676,5.56626604]
[1770766169240,3.74551498,82.7,82.64,3.74551498]
[1770766169241,3.74551498,82.7,82.665,10.8932]
[1770766169446,3.74551498,82.69,82.665,10.8932]
[1770766172352,3.74551498,82.68,82.653,5.55992838]
[1770766172942,3.74551498,82.68,82.661,5.56242225]
[1770766173745,3.74551498,82.68,82.662,10.8935]
[1770766174145,3.74551498,82.69,82.662,10.8935]
[1770766179458,3.74551498,82.69,82.662,16.41179745]
[1770766180059,3.74551498,82.69,82.663,5.51829745]
[1770766180257,3.74551498,82.69,82.662,10.8935]
[1770766180258,12.49891641,82.7,82.665,5.51829745]
[1770766180459,3.74551498,82.7,82.665,5.51829745]
[1770766181261,12.49891641,82.7,82.665,5.51829745]
[1770766181453,3.74551498,82.7,82.665,5.51829745]
[1770766181955,10.8888,82.699,82.665,5.51829745]
[1770766182154,19.64220143,82.699,82.665,5.51829745]
[1770766183066,8.75340143,82.698,82.665,5.51829745]
[1770766183260,3.74551498,82.69,82.665,5.51829745]
[1770766183564,3.74551498,82.69,82.657,10.8942]
[1770766183964,3.74551498,82.69,82.661,10.8937]
[1770766186860,3.74551498,82.68,82.652,10.8948]
[1770766187066,3.74551498,82.67,82.649,5.53500048]
[1770766187267,3.74551498,82.67,82.611,5.53500048]
[1770766187770,3.74551498,82.67,82.629,5.53500048]
[1770766188767,3.74551498,82.67,82.637,5.5312597]
[1770766189661,3.74551498,82.67,82.641,5.5312597]
[1770766189860,3.74551498,82.68,82.641,5.5312597]
[1770766190372,10.8915,82.679,82.641,5.5312597]
[1770766190565,3.74551498,82.67,82.641,5.5312597]
[1770766191568,10.8915,82.679,82.641,5.5312597]
[1770766195672,10.8915,82.679,82.643,5.51205692]
[1770766199272,10.8915,82.679,82.645,5.50158038]
[1770766201167,10.8906,82.685,82.647,5.51447378]
[1770766201581,3.74847003,82.68,82.647,5.51447378]
[1770766202680,3.74847003,82.68,82.648,10.8954]
[1770766202981,3.74847003,82.67,82.621,5.49583513]
[1770766204581,3.74847003,82.66,82.621,5.49583513]
[1770766204780,3.74847003,82.66,82.629,10.898]
[1770766205577,10.8941,82.659,82.619,10.8993]
[1770766206180,10.8941,82.659,82.619,16.43651208]
[1770766207280,3.74847003,82.66,82.619,16.43651208]
[1770766207487,3.74847003,82.66,82.623,10.8987]
[1770766207783,3.74847003,82.65,82.623,10.8987]
[1770766209583,3.74847003,82.66,82.623,10.8987]
[1770766210384,3.74847003,82.66,82.62,5.55063612]
[1770766210385,10.8943,82.658,82.62,5.55063612]
[1770766210689,3.74847003,82.64,82.614,10.8999]
[1770766211290,3.74847003,82.65,82.617,5.56145773]
[1770766212889,3.75139545,82.65,82.617,5.56145773]
[1770766216385,149.42,82.675,82.576,322.17081279]
[1770766216386,3.75139545,82.64,82.6,5.48897595]
[1770766216586,10.8963,82.642,82.6,5.48897595]
[1770766216889,3.75139545,82.64,82.6,5.48897595]
[1770766217792,3.75139545,82.64,82.603,5.48985006]
[1770766221693,3.75139545,82.64,82.605,5.49354883]
[1770766222792,3.75139545,82.64,82.609,5.48915808]
[1770766227297,3.75139545,82.64,82.618,5.48781169]
[1770766227599,3.75139545,82.65,82.618,5.48781169]
[1770766228098,3.75139545,82.68,82.621,5.48781169]
[1770766228497,3.75139545,82.67,82.621,5.48781169]
[1770766228897,3.75139545,82.67,82.635,5.46724074]
[1770766231704,3.75139545,82.67,82.637,5.4256441]
[1770766231907,3.75139545,82.68,82.637,5.4256441]
[1770766233609,3.75139545,82.68,82.641,10.8963]
[1770766234410,3.75139545,82.68,82.641,16.32611132]
[1770766234608,3.75139545,82.67,82.641,16.32611132]
[1770766238313,3.75139545,82.67,82.642,5.44496125]
[1770766238508,3.75139545,82.66,82.632,10.8976]
[1770766238710,3.75139545,82.65,82.621,5.44496125]
[1770766239813,3.75139545,82.65,82.624,5.42827775]
[1770766240317,36.35,82.69,82.588,21.8069]
[1770766240318,3.75139545,82.67,82.628,5.42827775]
[1770766241809,10.8928,82.669,82.631,5.39862726]
[1770766242414,10.8941,82.659,82.631,5.39862726]
[1770766243314,3.75139545,82.66,82.631,5.39862726]
[1770766243713,14.64409545,82.67,82.631,5.39862726]
[1770766247319,3.75139545,82.66,82.631,5.39862726]
[1770766249419,3.75139545,82.65,82.591,5.3785174]
[1770766250425,3.75139545,82.65,82.588,21.8069]
[1770766250426,3.75139545,82.65,82.621,5.3785174]
[1770766250628,3.75139545,82.66,82.621,5.3785174]
[1770766251523,3.75139545,82.65,82.625,5.4501086]
[1770766254230,3.75139545,82.64,82.612,5.38954411]
[1770766254429,3.75139545,82.64,82.591,5.38954411]
[1770766254734,3.75139545,82.63,82.591,5.38954411]
[1770766254930,3.75139545,82.64,82.6,5.41913336]
[1770766256736,3.75139545,82.64,82.605,16.32023336]
[1770766257733,3.75139545,82.64,82.606,5.38504278]
[1770766258442,8.72961384,82.667,82.617,5.38504278]
[1770766258631,3.75139545,82.67,82.617,5.38504278]
[1770766258827,3.75139545,82.67,82.621,5.38377891]
[1770766259838,3.75139545,82.67,82.639,16.28047891]
[1770766260238,3.75139545,82.68,82.64,5.38377891]
[1770766260426,3.75139545,82.67,82.64,5.38377891]
[1770766261633,3.75139545,82.66,82.626,10.8983]
[1770766261929,3.75139545,82.66,82.627,5.34324608]
[1770766262135,3.75139545,82.67,82.627,5.34324608]
[1770766262840,3.75139545,82.67,82.63,5.34324608]
[1770766263738,3.75139545,82.67,82.633,5.36895654]
[1770766268537,36.33,82.693,82.633,5.36895654]
[1770766268538,3.75139545,82.66,82.633,5.36895654]
[1770766268735,3.75139545,82.67,82.633,5.36895654]
[1770766270844,10.8928,82.669,82.633,5.36895654]
[1770766274448,10.8928,82.669,82.635,5.37756221]
[1770766291463,10.8936,82.663,82.635,5.37756221]
[1770766293458,10.8928,82.669,82.635,5.37756221]
[1770766293765,3.74937407,82.67,82.635,5.37756221]
[1770766294763,135.92,82.695,82.645,5.33544645]
[1770766294764,3.74937407,82.68,82.645,5.33544645]
[1770766295764,10.8915,82.679,82.645,5.33544645]
[1770766297756,3.74937407,82.68,82.65,5.31666689]
[1770766297961,10.89,82.69,82.65,5.31666689]
[1770766297962,14.63937407,82.69,82.65,5.31666689]
[1770766298472,23.36898791,82.69,82.65,5.31666689]
[1770766298663,3.74937407,82.68,82.65,5.31666689]
[1770766301860,3.74937407,82.68,82.652,5.31313773]
[1770766302063,8.72961384,82.689,82.652,5.31313773]
[1770766302264,8.72961384,82.688,82.652,5.31313773]
[1770766302570,3.74937407,82.69,82.652,5.31313773]
[1770766303772,3.74937407,82.69,82.66,5.31020899]
[1770766304269,8.72961384,82.699,82.663,5.31020899]
[1770766304463,8.72961384,82.698,82.663,5.31020899]
[1770766304664,3.74937407,82.7,82.663,5.31020899]
[1770766304665,8.72961384,82.699,82.663,5.31020899]
[1770766304963,8.72961384,82.698,82.663,5.31020899]
[1770766305163,3.74937407,82.71,82.655,5.36004953]
[1770766305373,3.74937407,82.69,82.655,5.36004953]
[1770766306163,3.74937407,82.69,82.667,5.36004953]
[1770766306370,3.74937407,82.7,82.667,5.36004953]
[1770766306972,3.74937407,82.71,82.667,5.36004953]
[1770766307273,8.72961384,82.714,82.676,5.38183061]
[1770766307472,3.74937407,82.71,82.676,5.38183061]
[1770766308072,12.47898791,82.72,82.676,5.38183061]
[1770766308669,12.47898791,82.72,82.684,5.38183061]
[1770766309077,3.74937407,82.72,82.684,5.38183061]
[1770766309273,12.46854263,82.72,82.684,5.38183061]
[1770766310380,3.74937407,82.72,82.684,5.38183061]
[1770766311374,3.74937407,82.72,82.64,21.7931]
[1770766311375,3.74937407,82.72,82.689,5.43362491]
[1770766311775,14.63407407,82.73,82.689,5.43362491]
[1770766312674,14.63407407,82.73,82.691,10.8898]
[1770766312875,14.63407407,82.73,82.692,5.43362491]
[1770766313276,14.62883978,82.73,82.692,5.43362491]
[1770766314381,3.74413978,82.72,82.692,5.43362491]
[1770766315771,3.74413978,82.72,82.7,10.8886]
[1770766315975,3.74413978,82.73,82.701,5.44984849]
[1770766316583,3.74413978,82.74,82.701,5.44984849]
[1770766316779,3.74413978,82.75,82.704,5.44984849]
[1770766317890,3.74413978,82.75,82.721,5.44263974]
[1770766318689,3.74413978,82.76,82.729,16.32743974]
[1770766320490,3.74413978,82.78,82.741,5.45448782]
[1770766320886,3.74413978,82.77,82.741,5.45448782]
[1770766321393,3.74413978,82.77,82.744,5.41641306]
[1770766321686,3.74413978,82.78,82.744,5.41641306]
[1770766322887,3.74413978,82.78,82.748,10.8823]
[1770766323284,3.74413978,82.78,82.748,16.29637711]
[1770766323880,3.74413978,82.78,82.749,5.41407711]
[1770766325286,3.74413978,82.78,82.751,5.40995526]
[1770766325481,10.8753,82.802,82.751,5.40995526]
[1770766325685,3.74413978,82.79,82.751,5.40995526]
[1770766325882,3.74413978,82.78,82.751,5.40995526]
[1770766326694,3.74413978,82.78,82.756,10.8812]
[1770766328991,3.74413978,82.79,82.756,10.8812]
[1770766329496,3.74413978,82.78,82.756,10.8812]
[1770766330593,3.74413978,82.78,82.757,5.39753885]
[1770766331098,3.74413978,82.79,82.759,5.40167405]
[1770766331399,3.74413978,82.8,82.759,5.40167405]
[1770766332799,3.74413978,82.8,82.767,16.28147405]
[1770766333397,3.74413978,82.8,82.767,10.8798]
[1770766333597,3.74413978,82.79,82.767,10.8798]
[1770766334905,3.74413978,82.8,82.77,5.37051151]
[1770766337008,3.73718886,82.8,82.77,5.37051151]
[1770766337502,8.886e-05,82.8,82.77,5.37051151]
[1770766337710,470.71834686,82.817,82.77,5.37051151]
[1770766338103,470.71834686,82.817,82.785,5.37364786]
[1770766341904,3.73718886,82.83,82.79,5.36238516]
[1770766342109,3.73718886,82.82,82.79,5.36238516]
[1770766342812,3.73718886,82.82,82.791,10.8766]
[1770766344509,3.73718886,82.82,82.756,96.42]
[1770766344510,36.33,82.867,82.801,5.36326543]
[1770766344705,3.73718886,82.84,82.801,5.36326543]
[1770766345109,3.73718886,82.85,82.801,5.36326543]
[1770766345304,2.1005677,82.902,82.811,5.46720039]
[1770766345504,3.73718886,82.88,82.821,5.46720039]
[1770766345711,3.73718886,82.88,82.842,10.87]
[1770766346013,3.73718886,82.88,82.794,21.7525]
[1770766346014,3.73718886,82.88,82.843,5.46720039]
[1770766346809,3.73718886,82.88,82.83,3.73718886]
[1770766346810,3.73718886,82.88,82.848,5.4134068]
[1770766347206,3.73718886,82.88,82.836,16.2841068]
[1770766347410,8.886e-05,82.86,82.821,5.4134068]
[1770766347607,396.6,82.894,82.821,5.4134068]
[1770766347808,3.73718886,82.88,82.85,10.8689]
[1770766349014,3.73718886,82.88,82.85,16.33128244]
[1770766351016,3.73718886,82.87,82.838,5.4345839]
[1770766352712,3.73718886,82.88,82.841,5.4345839]
[1770766353116,3.73718886,82.87,82.841,5.4345839]
[1770766353311,3.73718886,82.88,82.853,10.8685]
[1770766353514,396.6,82.894,82.854,5.45000736]
[1770766353809,3.73718886,82.88,82.854,5.45000736]
[1770766356318,471.81310202,82.904,82.82,3.73718886]
[1770766356319,3.73718886,82.87,82.841,5.43059871]
[1770766356519,8.886e-05,82.87,82.841,5.43059871]
[1770766356721,3.73718886,82.88,82.841,5.43059871]
[1770766357314,3.73718886,82.88,82.85,16.29940086]
[1770766357514,3.73718886,82.88,82.851,5.43060086]
[1770766357730,3.73718886,82.89,82.86,10.8676]
[1770766358228,3.73718886,82.88,82.851,5.43060086]
[1770766358619,3.73718886,82.88,82.852,10.8686]
[1770766358811,3.73718886,82.88,82.852,16.37401452]
[1770766359017,3.73718886,82.88,82.857,10.8679]
[1770766360117,3.73718886,82.89,82.857,10.8679]
[1770766360324,3.73718886,82.89,82.857,16.37331452]
[1770766360527,3.73718886,82.89,82.86,10.8675]
[1770766361324,3.73718886,82.89,82.861,5.52490081]
[1770766368523,3.73718886,82.89,82.862,10.8672]
[1770766368920,3.73718886,82.89,82.862,16.43174906]
[1770766369333,3.73718886,82.89,82.864,10.8671]
[1770766369530,471.81310202,82.904,82.865,5.56454906]
[1770766369825,3.73718886,82.9,82.865,5.56454906]
[1770766370627,407.54,82.91,82.836,21.7413]
[1770766370628,3.73718886,82.91,82.873,5.56454906]
[1770766370826,10.8596,82.921,82.873,5.56454906]
[1770766370827,3.73718886,82.92,82.873,5.56454906]
[1770766371725,3.73718886,82.92,82.89,10.8637]
[1770766372327,3.73718886,82.92,82.886,5.56614924]
[1770766373435,3.73718886,82.92,82.888,10.8639]
[1770766374331,3.73718886,82.92,82.893,5.61871217]
[1770766374834,3.73718886,82.93,82.893,5.61871217]
[1770766375626,3.73718886,82.93,82.838,169.0964]
[1770766375627,467.371035,82.937,82.903,5.61905924]
[1770766376628,3.73718886,82.95,82.903,5.61905924]
[1770766376828,3.73718886,82.95,82.918,5.61905924]
[1770766378132,10.8578,82.935,82.848,21.7382]
[1770766378331,3.73718886,82.92,82.876,5.60314748]
[1770766378938,3.73718886,82.92,82.89,10.8636]
[1770766379235,3.73718886,82.92,82.888,5.72404027]
[1770766380536,3.73718886,82.91,82.888,5.72404027]
[1770766381535,3.73718886,82.91,82.877,10.8653]
[1770766382137,3.73718886,82.9,82.867,10.8666]
[1770766382333,3.73718886,82.89,82.867,10.8666]
[1770766382940,3.73718886,82.89,82.863,5.82945595]
[1770766385742,3.73718886,82.88,82.849,5.85433191]
[1770766386047,3.73718886,82.89,82.849,5.85433191]
[1770766386545,127.92,82.915,82.816,96.28]
[1770766386546,3.73718886,82.91,82.867,5.85433191]
[1770766387748,3.73718886,82.91,82.871,5.77487475]
[1770766389247,3.73718886,82.9,82.871,5.77487475]
[1770766393344,3.73718886,82.89,82.861,5.95899396]
[1770766393842,3.73718886,82.89,82.849,5.95899396]
[1770766394850,3.73718886,82.89,82.85,5.95899396]
[1770766395052,3.73718886,82.88,82.85,5.95899396]
[1770766396449,3.73718886,82.88,82.841,10.8701]
[1770766396653,3.73718886,82.87,82.841,10.8701]
[1770766396953,3.73113529,82.87,82.841,10.8701]
[1770766402254,3.73113529,82.87,82.841,16.85305928]
[1770766403847,3.73113529,82.87,82.844,10.8697]
[1770766407658,3.73113529,82.87,82.83,6.05412718]
[1770766407858,3.73113529,82.86,82.83,6.05412718]
[1770766408359,3.73113529,82.87,82.84,10.8702]
[1770766409147,3.73113529,82.87,82.84,16.93542829]
[1770766410260,3.73113529,82.87,82.84,6.06522829]
[1770766411255,3.73113529,82.86,82.833,10.8711]